fUST/lending_fUST_20250722
["ID","MTS","AMOUNT","RATE_DAILY","PERIOD"]
[373933196,1753157450369,-460.0,0.00017767,2]
[373933198,1753157450380,-901.37,0.00017767,2]
[373933200,1753157450389,-467.94774604,0.00017767,2]
[373933202,1753157450398,-460.0,0.00017767,2]
[373933204,1753157450411,-463.85411066,0.00017767,2]
[373933206,1753157450420,-460.0,0.00017767,2]
[373933207,1753157450430,-460.0,0.00017767,2]
[373933209,1753157450439,-460.0,0.00017767,2]
[373933211,1753157450449,-554.09054906,0.00017767,2]
[373933213,1753157450459,-460.0,0.00017767,2]
[373933215,1753157450468,-460.0,0.00017767,2]
[373933216,1753157450478,-1172.04,0.00017767,2]
[373933218,1753157450488,-460.0,0.00017767,2]
[373933220,1753157450497,-473.68115852,0.00017767,2]
[373933222,1753157450507,-460.0,0.00017767,2]
[373933224,1753157450516,-460.0,0.00017767,2]
[373933225,1753157450526,-1438.68,0.00017767,2]
[373933227,1753157450535,-460.0,0.00017767,2]
[373933229,1753157450545,-1388.47,0.00017767,2]
[373933231,1753157450554,-460.0,0.00017767,2]
[373933232,1753157450563,-959.19,0.00017767,2]
[373933234,1753157450573,-460.0,0.00017767,2]
[373933236,1753157450583,-324.31541681,0.00017767,2]
[373933238,1753157450592,-460.0,0.00017767,2]
[373933240,1753157450601,-460.0,0.00017767,2]
[373933241,1753157450610,-460.0,0.00017767,2]
[373933243,1753157450620,-231.07991888,0.00017767,2]
[373933245,1753157450629,-460.0,0.00017767,2]
[373933247,1753157450639,-983.0,0.00017767,2]
[373933249,1753157450649,-460.0,0.00017767,2]
[373933250,1753157450662,-470.63729375,0.00017767,2]
[373933252,1753157450672,-4717.98,0.00017767,2]
[373933254,1753157450682,-1144.31,0.00017767,2]
[373933256,1753157450691,-460.0,0.00017767,2]
[373933258,1753157450701,-460.0,0.00017767,2]
[373933259,1753157450710,-1482.56,0.00017767,2]
[373933261,1753157450721,-460.0,0.00017767,2]
[373933263,1753157450733,-460.0,0.00017767,2]
[373933265,1753157450743,-460.0,0.00017767,2]
[373933267,1753157450752,-460.0,0.00017767,2]
[373933276,1753157450861,-1287.62,0.00017767,2]
[373933278,1753157450871,-895.53,0.00017767,2]
[373933280,1753157450881,-460.0,0.00017767,2]
[373933282,1753157450891,-2097.13,0.00017767,2]
[373933284,1753157450900,-460.0,0.00017767,2]
[373933285,1753157450912,-465.61796826,0.00017767,2]
[373933287,1753157450921,-460.0,0.00017767,2]
[373933289,1753157450931,-746.5,0.00017767,2]
[373933291,1753157450940,-460.0,0.00017767,2]
[373933292,1753157450950,-460.0,0.00017767,2]
[373933294,1753157450960,-1436.52,0.00017767,2]
[373933296,1753157450969,-968.2,0.00017767,2]
[373933298,1753157450979,-460.0,0.00017767,2]
[373933300,1753157450988,-1283.07719695,0.00017767,2]
[373933319,1753157451193,-2483.64280305,0.00017767,2]
[373933321,1753157451203,-321.87870857,0.00017767,2]
[373933322,1753157451213,-151.0,0.000178,2]
[373933324,1753157451223,-500.0,0.00017843,2]
[373933326,1753157451232,-151.0,0.00017862,2]
[373933328,1753157451241,-151.0,0.00017862,2]
[373933330,1753157451250,-470.38675509,0.00017864,2]
[373933332,1753157451260,-417.98590046,0.00017864,2]
[373933333,1753157451269,-586.24,0.00017864,2]
[373933335,1753157451279,-875.56,0.00017864,2]
[373933337,1753157451288,-1107.94,0.00017864,2]
[373933339,1753157451297,-1309.67,0.00017864,2]
[373933340,1753157451306,-472.43,0.00017864,2]
[373933342,1753157451316,-460.0,0.00017864,2]
[373933344,1753157451325,-1235.69,0.00017864,2]
[373933346,1753157451335,-1109.78,0.00017864,2]
[373933348,1753157451345,-151.0,0.00017864,2]
[373933350,1753157451354,-151.0,0.00017864,2]
[373933352,1753157451364,-1365.04,0.00017864,2]
[373933353,1753157451373,-151.0,0.00017864,2]
[373933355,1753157451382,-1373.31,0.00017864,2]
[373933357,1753157451392,-1034.84,0.00017864,2]
[373933359,1753157451402,-947.0,0.00017865,2]
[373933361,1753157451413,-209.84295341,0.00017865,2]
[373933363,1753157451422,-460.0,0.00017865,2]
[373933365,1753157451432,-460.0,0.00017865,2]
[373933367,1753157451449,-460.0,0.00017865,2]
[373933369,1753157451466,-151.0,0.00017865,2]
[373933372,1753157451479,-151.0,0.00017865,2]
[373933374,1753157451497,-151.0,0.00017865,2]
[373933377,1753157451514,-151.0,0.00017865,2]
[373933379,1753157451532,-460.0,0.00017865,2]
[373933382,1753157451548,-460.0,0.00017865,2]
[373933384,1753157451563,-460.0,0.00017865,2]
[373933386,1753157451579,-460.0,0.00017865,2]
[373933389,1753157451595,-574.23,0.00017865,2]
[373933391,1753157451607,-460.0,0.00017865,2]
[373933393,1753157451621,-1368.84,0.00017865,2]
[373933396,1753157451637,-460.0,0.00017865,2]
[373933398,1753157451651,-1248.03,0.00017865,2]
[373933400,1753157451670,-734.62,0.00017865,2]
[373933403,1753157451688,-151.0,0.00017865,2]
[373933405,1753157451700,-460.0,0.00017865,2]
[373933407,1753157451712,-1479.12,0.00017865,2]
[373933410,1753157451732,-493.18,0.00017865,2]
[373933412,1753157451746,-460.0,0.00017865,2]
[373933414,1753157451759,-475.38328672,0.00017865,2]
[373933417,1753157451776,-1003.583072,0.00017865,2]
[373933419,1753157451792,-662.43,0.00017865,2]
[373933421,1753157451804,-1003.583072,0.00017865,2]
[373933423,1753157451817,-460.0,0.00017865,2]
[373933426,1753157451831,-460.0,0.00017865,2]
[373933428,1753157451844,-460.0,0.00017865,2]
[373933430,1753157451857,-894.47,0.00017865,2]
[373933432,1753157451870,-460.0,0.00017865,2]
[373933434,1753157451882,-151.0,0.00017865,2]
[373933436,1753157451895,-151.0,0.00017865,2]
[373933439,1753157451909,-460.0,0.00017865,2]
[373933441,1753157451922,-460.0,0.00017865,2]
[373933443,1753157451935,-1792.3,0.00017865,2]
[373933445,1753157451948,-589.76,0.00017865,2]
[373933447,1753157451960,-585.75,0.00017865,2]
[373933449,1753157451973,-460.0,0.00017865,2]
[373933452,1753157451985,-1492.63,0.00017865,2]
[373933454,1753157451998,-642.39,0.00017865,2]
[373933456,1753157452010,-460.0,0.00017865,2]
[373933458,1753157452023,-460.0,0.00017865,2]
[373933460,1753157452036,-460.0,0.00017865,2]
[373933462,1753157452049,-460.0,0.00017865,2]
[373933465,1753157452062,-460.0,0.00017865,2]
[373933467,1753157452075,-460.0,0.00017865,2]
[373933469,1753157452087,-460.0,0.00017865,2]
[373933471,1753157452100,-460.0,0.00017865,2]
[373933473,1753157452113,-460.0,0.00017865,2]
[373933476,1753157452126,-3276.24,0.00017865,2]
[373933478,1753157452139,-663.7,0.00017865,2]
[373933480,1753157452151,-151.0,0.00017865,2]
[373933482,1753157452164,-460.0,0.00017865,2]
[373933484,1753157452177,-1615.58,0.00017865,2]
[373933486,1753157452189,-460.0,0.00017865,2]
[373933489,1753157452202,-4769.0,0.00017865,2]
[373933491,1753157452216,-460.0,0.00017865,2]
[373933493,1753157452226,-961.28,0.00017865,2]
[373933495,1753157452235,-151.0,0.00017866,2]
[373933496,1753157452244,-642.29,0.00017866,2]
[373933498,1753157452254,-460.0,0.00017866,2]
[373933500,1753157452263,-574.98,0.00017866,2]
[373933502,1753157452272,-472.43,0.00017866,2]
[373933504,1753157452282,-460.0,0.00017866,2]
[373933506,1753157452291,-460.0,0.00017866,2]
[373933508,1753157452300,-460.0,0.00017866,2]
[373933510,1753157452309,-472.95010136,0.00017866,2]
[373933511,1753157452319,-460.0,0.00017866,2]
[373933513,1753157452328,-741.22,0.00017866,2]
[373933515,1753157452337,-304.67421131,0.00017866,2]
[373933517,1753157452347,-460.0,0.00017866,2]
[373933519,1753157452356,-894.38,0.00017866,2]
[373933521,1753157452365,-460.0,0.00017866,2]
[373933523,1753157452375,-460.0,0.00017866,2]
[373933524,1753157452384,-460.0,0.00017866,2]
[373933526,1753157452394,-460.0,0.00017866,2]
[373933528,1753157452404,-460.0,0.00017866,2]
[373933530,1753157452413,-460.0,0.00017866,2]
[373933532,1753157452423,-460.0,0.00017866,2]
[373933534,1753157452432,-1857.94,0.00017866,2]
[373933536,1753157452442,-460.0,0.00017866,2]
[373933538,1753157452451,-151.0,0.00017866,2]
[373933539,1753157452460,-460.0,0.00017868,2]
[373933541,1753157452470,-151.0,0.00017868,2]
[373933543,1753157452480,-151.0,0.00017868,2]
[373933545,1753157452489,-151.0,0.00017868,2]
[373933547,1753157452499,-153.328156,0.00017868,2]
[373933571,1753157452746,-154.09413,0.00017868,2]
[373933573,1753157452767,-460.0,0.00017868,2]
[373933576,1753157452779,-470.42,0.00017868,2]
[373933577,1753157452788,-10375.95,0.00017868,2]
[373933579,1753157452801,-151.0,0.000179,2]
[373933581,1753157452811,-151.0,0.000179,2]
[373933583,1753157452820,-9116.21513349,0.000179,2]
[373933585,1753157452830,-1000.0,0.00017921,2]
[373933587,1753157452839,-151.0,0.00017968,2]
[373933589,1753157452849,-2396.01,0.0001797,2]
[373933591,1753157452858,-2547.56,0.0001797,2]
[373933592,1753157452867,-3430.95,0.0001797,2]
[373933594,1753157452877,-460.0,0.0001797,2]
[373933596,1753157452887,-151.0,0.0001797,2]
[373933598,1753157452896,-151.0,0.0001797,2]
[373933600,1753157452906,-987.16,0.0001797,2]
[373933602,1753157452915,-153.657606,0.0001797,2]
[373933604,1753157452924,-3208.19,0.0001797,2]
[373933605,1753157452933,-151.0,0.0001797,2]
[373933607,1753157452942,-1890.9,0.0001797,2]
[373933609,1753157452952,-3213.13,0.0001797,2]
[373933611,1753157452961,-460.0,0.0001797,2]
[373933613,1753157452970,-460.0,0.0001797,2]
[373933614,1753157452979,-945.047,0.00017971,2]
[373933616,1753157452988,-178.6390675,0.00017971,2]
[373933618,1753157452997,-150.0,0.00018,2]
[373933620,1753157453006,-151.0,0.00018,2]
[373933622,1753157453015,-151.0,0.00018,2]
[373933624,1753157453025,-151.0,0.00018,2]
[373933626,1753157453034,-9116.21513346,0.00018038,2]
[373933628,1753157453043,-460.0,0.00018039,2]
[373933629,1753157453052,-460.0,0.00018039,2]
[373933631,1753157453061,-460.0,0.00018039,2]
[373933633,1753157453070,-923.14,0.00018039,2]
[373933635,1753157453079,-1019.9,0.00018039,2]
[373933637,1753157453088,-3216.22,0.00018039,2]
[373933639,1753157453098,-460.0,0.0001804,2]
[373933640,1753157453107,-460.0,0.0001804,2]
[373933642,1753157453116,-5107.47,0.0001804,2]
[373933644,1753157453126,-1520.76,0.0001804,2]
[373933646,1753157453135,-1027.18,0.0001804,2]
[373933648,1753157453145,-460.0,0.0001804,2]
[373933650,1753157453156,-460.0,0.0001804,2]
[373933652,1753157453164,-4817.64,0.0001804,2]
[373933653,1753157453173,-611.75,0.0001804,2]
[373933655,1753157453183,-498.73947691,0.0001804,2]
[373933657,1753157453192,-1033.11,0.0001804,2]
[373933659,1753157453201,-460.0,0.0001804,2]
[373933661,1753157453210,-2115.93,0.0001804,2]
[373933662,1753157453220,-1244.02,0.0001804,2]
[373933664,1753157453230,-2380.18827569,0.00018041,2]
[373933666,1753157453239,-250.37196029,0.00018041,2]
[373933668,1753157453249,-716.0,0.00018041,2]
[373933670,1753157453258,-460.0,0.00018041,2]
[373933672,1753157453267,-460.0,0.00018041,2]
[373933674,1753157453276,-460.0,0.00018041,2]
[373933676,1753157453287,-460.0,0.00018041,2]
[373933678,1753157453296,-460.0,0.00018041,2]
[373933679,1753157453305,-460.0,0.00018041,2]
[373933681,1753157453314,-571.1449409,0.00018041,2]
[373933683,1753157453324,-475.15615547,0.00018041,2]
[373933685,1753157453333,-460.0,0.00018041,2]
[373933687,1753157453346,-713.91,0.00018041,2]
[373933689,1753157453355,-460.0,0.00018041,2]
[373933691,1753157453365,-265.24248741,0.00018041,2]
[373933693,1753157453374,-460.0,0.00018041,2]
[373933695,1753157453384,-460.0,0.00018041,2]
[373933696,1753157453393,-527.76,0.00018041,2]
[373933698,1753157453402,-159.98383421,0.00018041,2]
[373933700,1753157453413,-460.0,0.00018041,2]
[373933702,1753157453422,-486.75,0.00018041,2]
[373933704,1753157453432,-460.0,0.00018041,2]
[373933706,1753157453442,-537.44,0.00018041,2]
[373933708,1753157453451,-515.51,0.00018041,2]
[373933709,1753157453461,-429.13335672,0.00018041,2]
[373933711,1753157453470,-460.0,0.00018041,2]
[373933713,1753157453480,-460.0,0.00018041,2]
[373933715,1753157453489,-460.0,0.00018041,2]
[373933717,1753157453499,-460.0,0.00018041,2]
[373933719,1753157453509,-460.0,0.00018041,2]
[373933721,1753157453519,-477.35374876,0.00018041,2]
[373933723,1753157453529,-460.0,0.00018041,2]
[373933725,1753157453538,-9991.89,0.00018041,2]
[373933726,1753157453547,-460.0,0.00018041,2]
[373933727,1753157453556,-460.0,0.00018041,2]
[373933728,1753157453566,-460.0,0.00018041,2]
[373933729,1753157453575,-460.0,0.00018041,2]
[373933730,1753157453583,-460.0,0.00018041,2]
[373933731,1753157453592,-901.37,0.00018041,2]
[373933732,1753157453602,-536.13271897,0.00018041,2]
[373933733,1753157453611,-460.0,0.00018041,2]
[373933734,1753157453620,-460.0,0.00018041,2]
[373933735,1753157453629,-460.0,0.00018041,2]
[373933736,1753157453639,-460.0,0.00018041,2]
[373933737,1753157453649,-460.0,0.00018041,2]
[373933738,1753157453660,-460.0,0.00018041,2]
[373933739,1753157453669,-1172.04,0.00018041,2]
[373933740,1753157453679,-460.0,0.00018041,2]
[373933741,1753157453688,-460.0,0.00018041,2]
[373933742,1753157453697,-460.0,0.00018041,2]
[373933743,1753157453706,-1438.68,0.00018041,2]
[373933744,1753157453716,-460.0,0.00018041,2]
[373933745,1753157453728,-1388.47,0.00018041,2]
[373933746,1753157453737,-460.0,0.00018041,2]
[373933747,1753157453746,-959.19,0.00018041,2]
[373933748,1753157453755,-460.0,0.00018041,2]
[373933749,1753157453766,-460.0,0.00018041,2]
[373933750,1753157453775,-460.0,0.00018041,2]
[373933751,1753157453785,-460.0,0.00018041,2]
[373933752,1753157453794,-460.0,0.00018041,2]
[373933753,1753157453805,-983.0,0.00018041,2]
[373933754,1753157453814,-460.0,0.00018041,2]
[373933755,1753157453823,-4717.98,0.00018041,2]
[373933756,1753157453832,-1144.31,0.00018041,2]
[373933757,1753157453841,-460.0,0.00018041,2]
[373933758,1753157453851,-460.0,0.00018041,2]
[373933759,1753157453859,-153.1528,0.00018041,2]
[373933760,1753157453869,-1482.56,0.00018041,2]
[373933761,1753157453878,-460.0,0.00018041,2]
[373933762,1753157453887,-460.0,0.00018041,2]
[373933763,1753157453896,-151.0,0.00018041,2]
[373933764,1753157453906,-460.0,0.00018041,2]
[373933765,1753157453916,-460.0,0.00018041,2]
[373933766,1753157453925,-895.53,0.00018041,2]
[373933767,1753157453934,-1287.62,0.00018041,2]
[373933768,1753157453943,-546.87402207,0.00018041,2]
[373933769,1753157453952,-2097.13,0.00018041,2]
[373933771,1753157453961,-460.0,0.00018041,2]
[373933772,1753157453971,-460.0,0.00018041,2]
[373933773,1753157453980,-746.5,0.00018041,2]
[373933775,1753157453989,-151.0,0.00018041,2]
[373933776,1753157453998,-548.01418531,0.00018041,2]
[373933778,1753157454007,-579.75836772,0.00018041,2]
[373933780,1753157454016,-1436.52,0.00018041,2]
[373933782,1753157454026,-968.2,0.00018041,2]
[373933784,1753157454035,-460.0,0.00018041,2]
[373933786,1753157454044,-3766.72,0.00018041,2]
[373933788,1753157454054,-723.0,0.00018046,2]
[373933790,1753157454063,-151.0,0.00018072,2]
[373933792,1753157454072,-151.531236,0.00018072,2]
[373933794,1753157454082,-154.503365,0.00018072,2]
[373933796,1753157454092,-339.170232,0.0001813,2]
[373933798,1753157454102,-586.24,0.00018138,2]
[373933800,1753157454111,-875.56,0.00018138,2]
[373933802,1753157454121,-1107.94,0.00018138,2]
[373933804,1753157454132,-1309.67,0.00018138,2]
[373933806,1753157454142,-472.43,0.00018138,2]
[373933808,1753157454153,-460.0,0.00018138,2]
[373933810,1753157454164,-1235.69,0.00018138,2]
[373933812,1753157454175,-1109.78,0.00018138,2]
[373933814,1753157454184,-1365.04,0.00018138,2]
[373933816,1753157454194,-1373.31,0.00018138,2]
[373933818,1753157454205,-1034.84,0.00018138,2]
[373933820,1753157454214,-947.0,0.00018139,2]
[373933822,1753157454224,-460.0,0.00018139,2]
[373933824,1753157454233,-460.0,0.00018139,2]
[373933826,1753157454243,-460.0,0.00018139,2]
[373933828,1753157454252,-460.0,0.00018139,2]
[373933830,1753157454262,-473.11661201,0.00018139,2]
[373933832,1753157454275,-460.0,0.00018139,2]
[373933834,1753157454284,-460.0,0.00018139,2]
[373933836,1753157454293,-574.23,0.00018139,2]
[373933838,1753157454303,-460.0,0.00018139,2]
[373933840,1753157454313,-1368.84,0.00018139,2]
[373933842,1753157454323,-460.0,0.00018139,2]
[373933844,1753157454333,-1248.03,0.00018139,2]
[373933846,1753157454342,-734.62,0.00018139,2]
[373933848,1753157454351,-151.0,0.00018139,2]
[373933850,1753157454361,-460.0,0.00018139,2]
[373933852,1753157454370,-1479.12,0.00018139,2]
[373933854,1753157454380,-493.18,0.00018139,2]
[373933856,1753157454389,-460.0,0.00018139,2]
[373933858,1753157454398,-1003.583072,0.00018139,2]
[373933860,1753157454409,-662.43,0.00018139,2]
[373933862,1753157454419,-1003.583072,0.00018139,2]
[373933864,1753157454428,-460.0,0.00018139,2]
[373933866,1753157454438,-460.0,0.00018139,2]
[373933868,1753157454447,-460.0,0.00018139,2]
[373933870,1753157454457,-894.47,0.00018139,2]
[373933872,1753157454468,-460.0,0.00018139,2]
[373933874,1753157454477,-151.0,0.00018139,2]
[373933876,1753157454486,-152.047654,0.00018139,2]
[373933879,1753157454496,-460.0,0.00018139,2]
[373933881,1753157454505,-460.0,0.00018139,2]
[373933883,1753157454514,-1792.3,0.00018139,2]
[373933885,1753157454524,-589.76,0.00018139,2]
[373933887,1753157454533,-585.75,0.00018139,2]
[373933889,1753157454542,-460.0,0.00018139,2]
[373933891,1753157454551,-1492.63,0.00018139,2]
[373933893,1753157454561,-642.39,0.00018139,2]
[373933895,1753157454570,-460.0,0.00018139,2]
[373933897,1753157454579,-460.0,0.00018139,2]
[373933899,1753157454589,-460.0,0.00018139,2]
[373933901,1753157454599,-460.0,0.00018139,2]
[373933903,1753157454609,-460.0,0.00018139,2]
[373933905,1753157454619,-460.0,0.00018139,2]
[373933907,1753157454628,-460.0,0.00018139,2]
[373933909,1753157454638,-460.0,0.00018139,2]
[373933911,1753157454648,-460.0,0.00018139,2]
[373933913,1753157454659,-3276.24,0.00018139,2]
[373933916,1753157454669,-663.7,0.00018139,2]
[373933918,1753157454678,-151.0,0.00018139,2]
[373933920,1753157454688,-460.0,0.00018139,2]
[373933921,1753157454697,-1615.58,0.00018139,2]
[373933923,1753157454708,-460.0,0.00018139,2]
[373933925,1753157454718,-4769.0,0.00018139,2]
[373933927,1753157454733,-460.0,0.00018139,2]
[373933929,1753157454742,-961.28,0.00018139,2]
[373933932,1753157454752,-151.0,0.00018139,2]
[373933933,1753157454763,-642.29,0.0001814,2]
[373933935,1753157454772,-460.0,0.0001814,2]
[373933937,1753157454782,-574.98,0.0001814,2]
[373933940,1753157454792,-472.43,0.0001814,2]
[373933942,1753157454803,-460.0,0.0001814,2]
[373933944,1753157454814,-460.0,0.0001814,2]
[373933946,1753157454823,-460.0,0.0001814,2]
[373933948,1753157454832,-460.0,0.0001814,2]
[373933949,1753157454842,-741.22,0.0001814,2]
[373933951,1753157454852,-460.0,0.0001814,2]
[373933954,1753157454861,-894.38,0.0001814,2]
[373933956,1753157454871,-460.0,0.0001814,2]
[373933958,1753157454880,-460.0,0.0001814,2]
[373933960,1753157454890,-468.61885676,0.0001814,2]
[373933962,1753157454899,-460.0,0.0001814,2]
[373933964,1753157454912,-460.0,0.0001814,2]
[373933966,1753157454922,-460.0,0.0001814,2]
[373933968,1753157454932,-460.0,0.0001814,2]
[373933970,1753157454941,-1857.94,0.0001814,2]
[373933972,1753157454951,-460.0,0.0001814,2]
[373933974,1753157454961,-151.0,0.00018142,2]
[373933976,1753157454970,-151.0,0.00018142,2]
[373933978,1753157454979,-151.634836,0.00018142,2]
[373933980,1753157454988,-151.0,0.00018142,2]
[373933982,1753157454998,-151.0,0.00018142,2]
[373933984,1753157455007,-151.0,0.00018142,2]
[373933986,1753157455017,-151.0,0.00018142,2]
[373933988,1753157455026,-151.0,0.00018142,2]
[373933990,1753157455036,-151.0,0.00018142,2]
[373933992,1753157455045,-152.290563,0.00018142,2]
[373933994,1753157455054,-151.0,0.00018142,2]
[373933996,1753157455063,-460.0,0.00018142,2]
[373933998,1753157455073,-470.42,0.00018142,2]
[373934000,1753157455082,-10375.95,0.00018142,2]
[373934002,1753157455091,-151.0,0.00018168,2]
[373934004,1753157455101,-511.76147251,0.00018168,2]
[373934006,1753157455110,-1500.0,0.00018168,2]
[373934008,1753157455120,-1509.12110116,0.00018168,2]
[373934010,1753157455130,-1500.0,0.00018168,2]
[373934012,1753157455140,-1000.0,0.00018168,2]
[373934014,1753157455150,-455.97491788,0.00018168,2]
[373934016,1753157455161,-1500.0,0.00018168,2]
[373934018,1753157455170,-1500.0,0.00018168,2]
[373934020,1753157455180,-513.17464779,0.00018168,2]
[373934022,1753157455189,-723.0,0.00018172,2]
[373934024,1753157455199,-9116.21513346,0.00018176,2]
[373934026,1753157455209,-800.0,0.00018208,2]
[373934028,1753157455218,-153.86902,0.00018212,2]
[373934030,1753157455227,-153.0,0.00018231,2]
[373934032,1753157455237,-153.0,0.00018231,2]
[373934034,1753157455247,-153.0,0.00018231,2]
[373934036,1753157455256,-153.0,0.00018231,2]
[373934038,1753157455265,-153.0,0.00018231,2]
[373934040,1753157455275,-154.6294685,0.00018231,2]
[373934042,1753157455285,-153.0,0.00018231,2]
[373934044,1753157455297,-153.0,0.00018231,2]
[373934046,1753157455306,-160.5921568,0.00018231,2]
[373934048,1753157455316,-900.0,0.00018235,2]
[373934050,1753157455326,-151.0,0.00018242,2]
[373934052,1753157455335,-2396.01,0.00018244,2]
[373934054,1753157455344,-2547.56,0.00018244,2]
[373934056,1753157455354,-3430.95,0.00018244,2]
[373934058,1753157455363,-460.0,0.00018244,2]
[373934060,1753157455372,-987.16,0.00018244,2]
[373934062,1753157455383,-3208.19,0.00018244,2]
[373934064,1753157455393,-1890.9,0.00018244,2]
[373934066,1753157455403,-151.0,0.00018244,2]
[373934068,1753157455414,-3213.13,0.00018244,2]
[373934069,1753157455424,-460.0,0.00018244,2]
[373934071,1753157455434,-151.0,0.00018244,2]
[373934073,1753157455444,-460.0,0.00018244,2]
[373934076,1753157455454,-151.0,0.00018244,2]
[373934078,1753157455464,-151.0,0.00018244,2]
[373934079,1753157455474,-151.0,0.00018268,2]
[373934081,1753157455484,-800.0,0.0001828,2]
[373934083,1753157455493,-161.0,0.000183,3]
[373934085,1753157455503,-161.0,0.000183,2]
[373934087,1753157455513,-161.0,0.000183,4]
[373934089,1753157455523,-161.0,0.000183,4]
[373934091,1753157455532,-163.75588916,0.000183,3]
[373934093,1753157455541,-150.0,0.00018311,2]
[373934095,1753157455550,-887.7193002,0.00018313,2]
[373934097,1753157455560,-460.0,0.00018313,2]
[373934099,1753157455570,-460.0,0.00018313,2]
[373934101,1753157455580,-443.40222335,0.00018313,2]
[373934103,1753157455589,-923.14,0.00018313,2]
[373934105,1753157455599,-1019.9,0.00018313,2]
[373934107,1753157455609,-3216.22,0.00018313,2]
[373934109,1753157455618,-9116.21513346,0.00018314,2]
[373934111,1753157455628,-460.0,0.00018314,2]
[373934113,1753157455637,-460.0,0.00018314,2]
[373934115,1753157455647,-5107.47,0.00018314,2]
[373934117,1753157455657,-1520.76,0.00018314,2]
[373934119,1753157455667,-1027.18,0.00018314,2]
[373934121,1753157455676,-460.0,0.00018314,2]
[373934123,1753157455685,-460.0,0.00018314,2]
[373934125,1753157455695,-4817.64,0.00018314,2]
[373934127,1753157455706,-611.75,0.00018314,2]
[373934129,1753157455716,-1033.11,0.00018314,2]
[373934131,1753157455730,-460.0,0.00018314,2]
[373934133,1753157455739,-2115.93,0.00018314,2]
[373934135,1753157455749,-1244.02,0.00018314,2]
[373934137,1753157455758,-716.0,0.00018315,2]
[373934139,1753157455769,-468.322365,0.00018315,2]
[373934141,1753157455778,-460.0,0.00018315,2]
[373934143,1753157455788,-568.14124237,0.00018315,2]
[373934145,1753157455799,-478.59257599,0.00018315,2]
[373934147,1753157455809,-460.0,0.00018315,2]
[373934149,1753157455819,-460.0,0.00018315,2]
[373934151,1753157455829,-368.40089795,0.00018315,2]
[373934153,1753157455839,-713.91,0.00018315,2]
[373934155,1753157455849,-460.0,0.00018315,2]
[373934157,1753157455859,-460.0,0.00018315,2]
[373934172,1753157455974,-460.0,0.00018315,2]
[373934174,1753157455999,-527.76,0.00018315,2]
[373934176,1753157456009,-460.0,0.00018315,2]
[373934178,1753157456018,-486.75,0.00018315,2]
[373934180,1753157456028,-460.0,0.00018315,2]
[373934182,1753157456037,-537.44,0.00018315,2]
[373934184,1753157456047,-515.51,0.00018315,2]
[373934187,1753157456057,-460.0,0.00018315,2]
[373934188,1753157456066,-373.94182476,0.00018315,2]
[373934190,1753157456076,-460.0,0.00018315,2]
[373934192,1753157456086,-460.0,0.00018315,2]
[373934194,1753157456095,-460.0,0.00018315,2]